[Event "Icelandic Chess-ch 2023"]
[Site "Hafnarfjordur"]
[Date "2023.05.22"]
[Round "8.5"]
[White "Thorfinnsson, Bragi"]
[Black "Gretarsson, Hjorvar Steinn"]
[Result "0-1"]
[ECO "B90"]
[WhiteElo "2431"]
[BlackElo "2539"]
[Annotator "TA"]
[PlyCount "136"]
[EventDate "2023.05.13"]
[EventType "tourn"]
[EventCountry "ISL"]
[SourceTitle "playchess.com"]
[Source "ChessBase"]
[SourceQuality "1"]
[TimeControl "40/5400+30:1800+30"]

{[%evp 11,136,12,21,28,13,11,21,18,27,30,17,0,0,-20,-18,-77,-79,-74,-81,-123,-123,-120,-126,-124,-83,-86,-54,-56,-54,-48,-60,-113,-121,-127,-125,-111,-124,-112,-120,-101,-78,-90,-96,-90,-35,-50,-40,-57,-30,-59,-57,-61,-55,-56,-56,-56,-56,-56,-56,-56,-56,-62,-45,-40,-35,-106,-106,-110,-92,-99,-90,-84,-84,-162,-166,-171,-170,-166,-151,-154,-59,-59,-43,-57,-56,-287,-93,-94,-79,-84,-79,-80,-80,-131,-111,-96,0,0,0,0,125,-16,0,-16,-16,-16,-12,-14,-14,-57,0,0,0,-58,-59,-587,-518,-981,-902,-1146,-1108,-4654,-12843,-29979,-29980,-29980,-29981]} 1. e4 {[%emt 20:06:58]} c5 {[%emt 0:03:48]} 2. Nf3 {[%emt 0:00:00]} d6 {[%emt 0:03:01]} 3. d4 {[%emt 0:00:00]} cxd4 {[%emt 0:00:04]} 4. Nxd4 {[%emt 0:00:00]} Nf6 {[%emt 0:00:04]} 5. Nc3 {[%emt 0:00:00]} a6 {[%emt 0:00:04]} 6. Bd3 {[%emt 0:00:00]} g6 {[%emt 0:01:12]} 7. f3 {[%emt 0:00:00] B90: Sicilian Najdorf: Unusual White 6th moves, 6 Be3 Ng4 and 6 Be3 e5.} e5 {[%emt 0:00:09]} 8. Nb3 {[%emt 0:00:00]} Be6 {[%emt 0:00:19]} 9. Bg5 {[%emt 0:00:00] The position is equal.} Nbd7 {[%emt 0:05:27]} 10. Qd2 {[%emt 0:00:00] [#]} Be7 $146 {[%emt 0:03:58]} ({Predecessor:} 10... Qc7 11. O-O-O b5 12. Kb1 b4 13. Ne2 Be7 14. Bh6 a5 15. Nbc1 Qb7 16. Ng3 a4 {0-1 Mammadzada,G (2449)-Assaubayeva,B (2464) Berlin Armageddon (Women) Win blitz 2023 (3.1)}) 11. O-O {[%emt 0:13:03]} O-O {[%emt 0:02:32]} 12. Bh6 {[%emt 0:00:00]} Re8 {[%emt 0:00:37]} 13. Ne2 {[%emt 0:00:00]} (13. Kh1 $11 {remains equal.}) 13... d5 $17 {[%emt 0:03:49] aiming for ...dxe4.} 14. Ng3 {[%emt 0:00:00][%cal Og3f5]} Rc8 {[%emt 0:06:02]} 15. Rae1 {[%emt 0:00:00][%cal Og3f5]} dxe4 $1 {[%emt 0:16:07]} 16. Nxe4 {[%emt 0:00:00]} Nxe4 {[%emt 0:00:23]} 17. Bxe4 {[%emt 0:00:00]} Qc7 {[%emt 0:01:17]} 18. Bg5 {[%emt 0:00:00]} Nf6 {[%emt 0:13:09][%cal Bd7f6,Bf6d5,Bd5f4][%mdl 32]} 19. Bd3 $1 {[%emt 0:00:00]} Nd5 {[%emt 0:00:53]} 20. Bxe7 $1 {[%emt 0:00:00]} Rxe7 {[%emt 0:00:15]} 21. Qg5 {[%emt 0:00:00]} (21. Rf2 $15) 21... f6 {[%emt 0:01:05]} 22. Qh4 {[%emt 0:00:00]} Kg7 {[%emt 0:01:15]} 23. Qf2 {[%emt 0:00:00]} Nf4 {[%emt 0:02:14][%cal Oe6h3]} 24. Qe3 {[%emt 0:00:00]} a5 {[%emt 0:07:15]} 25. Nc1 {[%emt 0:00:00]} b6 {[%emt 0:05:59] Black has more active pieces.} 26. a3 {[%emt 0:00:00]} Qc5 {[%emt 0:01:51]} 27. Qxc5 {[%emt 0:00:00]} bxc5 {[%emt 0:01:36]} (27... Rxc5 $17 28. Be4 Bc4) 28. Bb5 $1 $15 {[%emt 0:00:00]} c4 {[%emt 0:02:38]} 29. Na2 {[%emt 0:00:00]} Nd5 {[%emt 0:01:47]} 30. Re4 {[%emt 0:00:00][%cal Of1c1]} Rc5 {[%emt 0:06:36]} 31. a4 {[%emt 0:00:00]} (31. Bxc4 $2 {perishes.} f5 32. Rxe5 Rxc4 $19) 31... Bf5 {[%emt 0:03:54]} 32. Re2 $1 {[%emt 0:00:00]} (32. Rxc4 $2 {too greedy.} Rxc4 33. Bxc4 Ne3 $19) 32... c3 {[%emt 0:00:30]} 33. Nxc3 {[%emt 0:00:00]} Nxc3 {[%emt 0:00:06]} 34. bxc3 {[%emt 0:00:00]} Rxc3 {[%emt 0:00:07][%cal Oe7c7]} 35. Rd1 {[%emt 0:00:00]} Bxc2 {[%emt 0:03:08]} 36. Rd6 {[%emt 0:00:00]} e4 {[%emt 0:01:09]} 37. Ra6 {[%emt 0:00:00]} e3 {[%emt 0:00:23][%cal Oc2a4]} 38. Rxa5 {[%emt 0:00:00] [#]} (38. Re1 $15) 38... Bxa4 $1 $17 {[%emt 0:00:28][%mdl 576] Promotion} 39. h4 {[%emt 0:00:00]} Bc2 {[%emt 0:03:03]} 40. Ra2 {[%emt 0:00:00]} Rec7 {[%emt 0:00:42]} 41. Kh2 {[%emt 0:00:00]} h6 {[%emt 0:10:47]} 42. Ra1 {[%emt 0:00:00]} (42. Re1 $17) 42... f5 $1 $19 {[%emt 0:01:48]} 43. Kg3 {[%emt 0:00:00]} g5 {[%emt 0:03:18]} 44. hxg5 {[%emt 0:00:00]} hxg5 {[%emt 0:00:05]} 45. f4 {[%emt 0:00:00]} g4 {[%emt 0:05:02]} (45... R7c5 $1 $17 {[%cal Rc5b5]} 46. Ra7+ Kf6 47. Ra6+ Ke7 48. Ra7+ Kd6 49. Rd7+ Ke6) 46. Kh4 $1 $15 {[%emt 0:00:00]} Be4 {[%emt 0:02:45] Strongly threatening ...Rb7.} (46... R3c5 $5 {[%cal Rc5b5]} 47. Ba6 Rc3 $17) 47. Kg5 {[%emt 0:00:00]} Kf8 {[%emt 0:02:26] ...R3c5 is the strong threat.} 48. Ree1 $2 {[%emt 0:00:00]} (48. Ra6 $1 $15) 48... Rg7+ $2 {[%emt 0:02:23]} (48... Bxg2 $19 {has better winning chances.} 49. Ra6 Bf3) 49. Kf6 $17 {[%emt 0:00:00]} Rf7+ {[%emt 0:01:13]} 50. Kg6 {[%emt 0:00:00]} Rb7 {[%emt 0:04:34]} 51. Ra8+ {[%emt 0:00:00]} Ke7 {[%emt 0:00:01]} 52. Re8+ {[%emt 0:00:00]} Kd6 {[%emt 0:00:04]} 53. Re5 {[%emt 0:00:00]} Kc7 {[%emt 0:00:07]} ({Black should play} 53... g3 $1 $17 54. Rd1+ Kc7) 54. g3 $11 {[%emt 0:00:00]} Rb6+ {[%emt 0:01:02]} 55. Kg5 {[%emt 0:00:00]} Kb7 {[%emt 0:00:54]} (55... Rb8 $11 {keeps the balance.}) 56. Be2 {[%emt 0:00:00]} (56. Bd7 $16) 56... Rc7 {[%emt 0:00:24]} (56... Rcc6 $5 {[%cal Rc6g6]} 57. Rxe4 fxe4 $15) 57. Rxe4 {[%emt 0:00:00]} fxe4 {[%emt 0:00:05][%mdl 4096] Endgame KRR-KRB} 58. f5 {[%emt 0:00:00]} Rg7+ {[%emt 0:01:26]} 59. Kf4 {[%emt 0:00:00]} Kc6 {[%emt 0:00:58]} 60. Bxg4 {[%emt 0:00:00]} Kd5 {[%emt 0:00:16]} (60... Rb2 $15) 61. Rd1+ {[%emt 0:00:00]} Kc5 {[%emt 0:00:10] And now ...Rb2 would win.} 62. Be2 {[%emt 0:00:00]} ({Better is} 62. Rc1+ $11 Kd5 63. Rd1+ Kc4 64. Rc1+ Kd5 65. Rd1+) 62... Rb2 $15 {[%emt 0:00:09]} 63. Re1 $2 {[%emt 0:00:00][%mdl 8192]} (63. Kxe3 $15 Rxg3+ 64. Kf4) 63... Kd4 $19 {[%emt 0:00:07]} 64. g4 {[%emt 0:00:00]} (64. f6 $142 Rh7 65. Kg5) 64... Rc7 {[%emt 0:00:20]} 65. f6 {[%emt 0:00:00]} Rcc2 {[%emt 0:00:11]} 66. Rd1+ {[%emt 0:00:00] [#]} Rd2 $1 {[%emt 0:00:11] ( -> ...Rxd1)} 67. f7 {[%emt 0:00:00] [#]} Rxd1 $1 {[%emt 0:00:05]} 68. f8=Q {[%emt 0:00:00] [#]} Rf1+ $3 {[%emt 0:00:08][%mdl 576] Skewer, Decoy.   Weighted Error Value: White=0.17 (very precise) /Black=0.19 (very precise)} 0-1

[Event "Icelandic Chess-ch 2023"]
[Site "Hafnarfjordur"]
[Date "2023.05.22"]
[Round "8.6"]
[White "Stefansson, Hannes"]
[Black "Heimisson, Hilmir Freyr"]
[Result "1-0"]
[ECO "C67"]
[WhiteElo "2521"]
[BlackElo "2353"]
[Annotator "TA"]
[PlyCount "81"]
[EventDate "2023.05.13"]
[EventType "tourn"]
[EventCountry "ISL"]
[SourceTitle "playchess.com"]
[Source "ChessBase"]
[SourceQuality "1"]
[TimeControl "40/5400+30:1800+30"]

{[%evp 18,81,15,6,27,0,0,-11,1,-14,40,25,14,19,47,49,131,132,134,121,133,124,130,114,141,140,130,111,108,106,183,167,166,169,177,170,265,250,231,212,286,285,291,288,359,350,643,629,548,405,1851,1851,1764,1779,2818,2514,12534,7718,12833,12831,12838,12839,12845,12846,12846,12847]} 1. e4 {[%emt 0:01:17]} e5 {[%emt 0:00:08]} 2. Nf3 {[%emt 0:00:15]} Nc6 {[%emt 0:00:08]} 3. Bb5 {[%emt 0:00:27]} Nf6 {[%emt 0:00:08]} 4. O-O {[%emt 0:01:00]} Nxe4 {[%emt 0:00:09]} 5. d4 {[%emt 0:00:18]} Nd6 {[%emt 0:00:07]} 6. Bxc6 {[%emt 0:00:10]} dxc6 {[%emt 0:00:08]} 7. dxe5 {[%emt 0:00:26]} Nf5 {[%emt 0:00:08]} 8. Qxd8+ {[%emt 0:00:20]} Kxd8 {[%emt 0:00:08]} 9. Nc3 {[%emt 0:00:25]} Ke8 {[%emt 0:00:07]} 10. h3 {[%emt 0:01:21]} h5 {[%emt 0:00:47] C67: Ruy Lopez: Berlin Defence: 4 0-0 Nxe4.} 11. Ne2 {[%emt 0:03:53]} b6 {[%emt 0:00:15]} 12. Re1 {[%emt 0:03:04] 12.Bg5 gains popularity.} Bb7 {[%emt 0:02:17] [#] The position is equal.} 13. Bg5 $146 {[%emt 0:05:33]} ({Predecessor:} 13. Nc3 c5 14. Ne4 Rd8 15. c3 Be7 16. Bf4 Bd5 17. a4 Kd7 18. a5 Kc6 19. Neg5 {0-1 Matsenko,S (2465)-Ponkratov,P (2589) Khanty-Mansiysk Governor Cup-A 8th 2012 (9)}) 13... h4 {[%emt 0:37:55]} (13... c5 $11) 14. Ned4 {[%emt 0:05:26]} Nxd4 {[%emt 0:00:22]} 15. Nxd4 {[%emt 0:00:06]} Rh5 {[%emt 0:00:09]} 16. f4 {[%emt 0:01:41]} Be7 {[%emt 0:09:05] [#] Black is on the road to losing.} (16... Bc5 $14 17. Rad1 Kf8) 17. Nf5 $1 $16 {[%emt 0:05:56][%csl LRe7,LRg7]} Bc5+ {[%emt 0:00:12]} 18. Kh2 {[%emt 0:00:08]} Kf8 {[%emt 0:01:08] [#]} 19. Rad1 $1 {[%emt 0:02:59][%cal Od1d7] Hoping for Rd7!} ({Don't play} 19. Nxh4 $6 Bf2 20. Nf5 Bxe1 21. Rxe1 Re8 $11) 19... f6 {[%emt 0:10:57]} 20. exf6 {[%emt 0:06:51] White is much more active. The black rooks are badly placed.} gxf6 {[%emt 0:00:18]} 21. g4 $1 {[%emt 0:01:41]} hxg3+ {[%emt 0:10:40]} 22. Nxg3 {[%emt 0:00:24]} Rh7 {[%emt 0:00:35]} 23. Bxf6 {[%emt 0:00:12]} Bf2 {[%emt 0:00:40]} (23... Bc8 $16 {might work better.}) 24. Re2 $36 {[%emt 0:05:09][%mdl 2048] Keeping Black busy.} Bxg3+ {[%emt 0:00:21]} 25. Kxg3 {[%emt 0:00:06]} Ba6 {[%emt 0:00:39]} 26. Re5 {[%emt 0:03:10]} Bc4 {[%emt 0:03:50]} (26... Re8 {was necessary.} 27. Rxe8+ Kxe8) 27. b3 $18 {[%emt 0:01:27]} Bg8 {[%emt 0:00:05]} 28. Rde1 {[%emt 0:01:27]} Rd7 {[%emt 0:04:06]} 29. Re7 {[%emt 0:01:44]} Rxe7 {[%emt 0:01:59]} 30. Rxe7 {[%emt 0:00:07][%mdl 4096] Endgame KRB-KRB} b5 {[%emt 0:11:13]} 31. Rxc7 {[%emt 0:01:19]} Bd5 $2 {[%emt 0:00:01]} (31... Bf7 32. f5 Re8 33. Rxc6 Re3+ 34. Kg4 Re2 35. Rc8+ Be8) 32. h4 {[%emt 0:01:52][%cal Bh3h4,Bh4h5][%mdl 32]} Re8 {[%emt 0:00:46]} 33. Be5 {[%emt 0:01:02] Black must now prevent h5.} Be4 {[%emt 0:04:34]} (33... Re6 $142 34. h5 Ke8 35. Rxa7 Re7) 34. h5 {[%emt 0:00:46] White is clearly winning.} Re6 {[%emt 0:00:57]} 35. h6 {[%emt 0:00:50]} Rg6+ {[%emt 0:00:22]} 36. Kf2 {[%emt 0:00:09] Threatens to win with h7.} Rg2+ {[%emt 0:00:10]} 37. Ke3 {[%emt 0:00:16]} Bxc2 {[%emt 0:00:05]} 38. h7 {[%emt 0:00:12]} Bxh7 {[%emt 0:00:11]} 39. Rxh7 {[%emt 0:00:06]} Rxa2 {[%emt 0:00:08]} 40. f5 {[%emt 0:00:28] White threatens f6 and mate.} Ra6 {[%emt 0:00:46]} 41. Bd6+ {[%emt 0:30:59] Weighted Error Value: White=0.10 (very precise) /Black=0.40} 1-0

[Event "Icelandic Chess-ch 2023"]
[Site "Hafnarfjordur"]
[Date "2023.05.23"]
[Round "9.1"]
[White "Heimisson, Hilmir Freyr"]
[Black "Ptacnikova, Lenka"]
[Result "1-0"]
[ECO "B31"]
[WhiteElo "2353"]
[BlackElo "2099"]
[Annotator "TA"]
[PlyCount "109"]
[EventDate "2023.05.13"]
[EventType "tourn"]
[EventCountry "ISL"]
[SourceTitle "playchess.com"]
[Source "ChessBase"]
[SourceQuality "1"]
[TimeControl "40/5400+30:1800+30"]

{[%evp 11,109,28,27,35,34,10,19,21,19,27,49,28,43,39,66,70,63,75,76,61,65,62,54,61,89,41,45,31,38,-16,-16,-16,-4,-4,-12,-35,-22,-43,-43,-39,0,-75,-70,-82,-82,-82,-82,-82,-82,-82,-82,-82,-82,-96,-88,-104,-82,-83,-71,-80,-8,-30,-20,-10,0,0,0,-69,52,52,97,97,110,66,66,66,85,40,48,68,153,90,87,87,55,79,80,33,58,0,0,0,0,0,2227,1784,29981,29982,29982,29983]} 1. e4 {[%emt 0:00:51]} c5 {[%emt 0:00:03]} 2. Nf3 {[%emt 0:00:12]} Nc6 {[%emt 0:01:19]} 3. Bb5 {[%emt 0:01:00]} g6 {[%emt 0:00:29]} 4. Bxc6 {[%emt 0:01:30]} dxc6 {[%emt 0:00:15]} 5. d3 {[%emt 0:00:45]} Bg7 {[%emt 0:00:29]} 6. h3 {[%emt 0:01:09]} e5 {[%emt 0:01:09]} 7. a4 {[%emt 0:09:04][%cal Ba2a4,Ba4a5][%mdl 32] B31: Sicilian: 2...Nc6 3 Bb5 g6.} Qe7 {[%emt 0:06:24]} 8. Be3 {[%emt 0:09:11]} (8. Bg5 $5 {[%cal Rg5e7]} f6 9. Be3 $11) 8... Nf6 {[%emt 0:00:15]} 9. Qd2 {[%emt 0:01:10] The position is equal.} Nd7 {[%emt 0:00:37]} 10. Qc3 {[%emt 0:10:38]} O-O {[%emt 0:00:54]} 11. a5 {[%emt 0:02:35]} Rb8 {[%emt 0:01:42]} 12. Nbd2 {[%emt 0:03:09]} Re8 {[%emt 0:02:38]} 13. O-O {[%emt 0:02:10] [#]} h6 $146 {[%emt 0:01:53]} ({Predecessor:} 13... f6 14. Rfb1 Bf8 15. Nc4 Kh8 16. Qd2 Ra8 17. c3 Nb8 18. b4 cxb4 19. cxb4 Be6 {½-½ De Gleria,F (1980)-Mai,P (2026) GER-ch U15 Bad Bevensen 1994 (6)}) 14. Rfb1 {[%emt 0:02:00]} f5 {[%emt 0:01:19]} 15. Nc4 {[%emt 0:06:32]} f4 {[%emt 0:03:02]} 16. Bd2 {[%emt 0:00:43]} g5 {[%emt 0:00:40]} 17. b4 {[%emt 0:01:03]} h5 {[%emt 0:01:31]} 18. Qb3 {[%emt 0:02:43] White is much more active.} (18. h4 $1 $16) 18... Kh7 $14 {[%emt 0:02:13]} 19. Nh2 {[%emt 0:10:05] A dynamic duo of knights.} cxb4 {[%emt 0:07:16]} 20. Bxb4 {[%emt 0:01:27]} (20. Qxb4 $14 c5 21. Qa3) 20... c5 $1 $11 {[%emt 0:01:22]} 21. Bc3 {[%emt 0:02:46]} Nf8 $1 {[%emt 0:03:07]} 22. Qa3 {[%emt 0:07:56]} Bd7 {[%emt 0:03:14]} 23. f3 {[%emt 0:02:22]} Bf6 {[%emt 0:03:45]} 24. Kf1 {[%emt 0:02:56]} Ng6 {[%emt 0:03:06]} 25. Be1 {[%emt 0:00:58]} Nf8 {[%emt 0:02:36]} 26. Bf2 {[%emt 0:01:27]} (26. Bc3 $11 {keeps the balance.}) 26... Ne6 $17 {[%emt 0:01:27]} 27. c3 {[%emt 0:00:19]} Bc6 {[%emt 0:01:12]} 28. Ra2 {[%emt 0:00:31]} Rbd8 {[%emt 0:02:16]} 29. Rd2 {[%emt 0:00:59]} Rd7 {[%emt 0:00:44]} 30. Kg1 {[%emt 0:01:06]} Red8 {[%emt 0:00:22]} 31. Rbd1 {[%emt 0:00:46]} Bb5 {[%emt 0:12:29] Strongly threatening ...Bxc4.} 32. Qb3 {[%emt 0:00:07]} Ba6 {[%emt 0:01:01]} 33. Nf1 {[%emt 0:00:17]} g4 {[%emt 0:08:38]} 34. hxg4 {[%emt 0:00:43]} hxg4 {[%emt 0:02:08]} 35. fxg4 {[%emt 0:00:07]} Kg6 {[%emt 0:02:15]} (35... Ng5 $17 {...Kh8 is the strong threat.} 36. Qc2 Kg7) 36. Nh2 $1 $11 {[%emt 0:01:48]} Ng5 {[%emt 0:06:03] White must now prevent ...Qe6.} 37. Nf3 {[%emt 0:01:26]} Nxf3+ {[%emt 0:01:40]} 38. gxf3 {[%emt 0:00:02]} Qe6 {[%emt 0:07:00] Hoping for ...Bxc4.} 39. Qa2 {[%emt 0:12:12] [#]} ({White must play} 39. Be1 $11) 39... Rxd3 {[%emt 0:10:27]} 40. Rxd3 $14 {[%emt 0:00:32]} Rxd3 {[%emt 0:00:32]} 41. Rxd3 {[%emt 0:30:51]} Bxc4 {[%emt 0:30:45]} 42. Qd2 {[%emt 0:01:43]} Bxd3 {[%emt 0:00:07]} 43. Qxd3 {[%emt 0:00:06][%mdl 4096] Endgame KQB-KQB} c4 {[%emt 0:00:00]} 44. Qd1 {[%emt 0:00:00]} a6 {[%emt 0:00:00]} 45. Bb6 {[%emt 0:00:00]} (45. Kg2 {looks sharper.} Qc6 46. Qh1 Qd6 47. Qh5+) 45... Qc6 {[%emt 0:00:00] [#]} ({Better is} 45... Be7 $14) 46. Kg2 {[%emt 0:00:00]} (46. Bd8 $142 $1) 46... Be7 $16 {[%emt 0:00:00]} 47. Qh1 {[%emt 0:00:00]} Kg7 {[%emt 0:00:00]} 48. Qh5 {[%emt 0:00:00] Inhibits Qe8.} Qd6 {[%emt 0:00:00]} 49. Kh3 {[%emt 0:00:00]} (49. Qe8 $16) 49... Bf6 $14 {[%emt 0:00:00]} 50. g5 {[%emt 0:00:27]} (50. Qe8 $14) 50... Be7 $11 {[%emt 0:00:00]} 51. g6 $36 {[%emt 0:00:26][%mdl 2048] White threatens Qh7+ and mate. White is more active.} Qe6+ {[%emt 0:00:00]} 52. Qf5 {[%emt 0:00:09]} Qxf5+ {[%emt 0:00:00][%mdl 8192]} (52... Qf6 $11) 53. exf5 $18 {[%emt 0:00:02]} Bb4 {[%emt 0:00:09]} 54. cxb4 {[%emt 0:00:56]} c3 {[%emt 0:00:12]} 55. Bc7 {[%emt 0:00:06] Weighted Error Value: White=0.18 (very precise) /Black=0.24 (precise)} 1-0

[Event "Icelandic Chess-ch 2023"]
[Site "Hafnarfjordur"]
[Date "2023.05.23"]
[Round "9.2"]
[White "Gretarsson, Hjorvar Steinn"]
[Black "Stefansson, Hannes"]
[Result "0-1"]
[ECO "E32"]
[WhiteElo "2539"]
[BlackElo "2521"]
[Annotator "TA"]
[PlyCount "132"]
[EventDate "2023.05.13"]
[EventType "tourn"]
[EventCountry "ISL"]
[SourceTitle "playchess.com"]
[Source "ChessBase"]
[SourceQuality "1"]
[TimeControl "40/5400+30:1800+30"]

{[%evp 13,132,0,0,0,0,0,0,0,0,0,0,0,0,0,38,-32,-32,-189,-179,-191,-193,-175,-164,-272,-260,-245,-79,-74,0,-95,-52,-60,-40,-71,-69,-144,-115,-150,-152,-138,-100,-100,-100,-100,-100,-172,-162,-135,-146,-225,-207,-243,-243,-530,-509,-874,-874,-863,-863,-820,-820,-889,-889,-864,-787,-636,-768,-762,-839,-776,-617,-556,-551,-602,-229,-1692,-1256,-29957,-29958,-29966,-29962,-29961,-29962,-29963,-29964,-29962,-29955,-7424,-1121,-1019,-143,-143,0,-29958,-29954,-29948,-29949,-29936,0,-1353,0,-2461,0,-1353,-649,-632,-608,-10984,-10984,-29970,-29972,-29978,-29979,-29981,-29982,-29982,-29983,-29983,-29984,-29985,-29986]} 1. d4 {[%emt 0:07:13]} Nf6 {[%emt 0:00:15]} 2. c4 {[%emt 0:00:32]} e6 {[%emt 0:00:15]} 3. Nc3 {[%emt 0:00:03]} Bb4 {[%emt 0:00:24]} 4. Qc2 {[%emt 0:00:08]} O-O {[%emt 0:00:37]} 5. e4 {[%emt 0:01:30]} d5 {[%emt 0:00:48]} 6. e5 {[%emt 0:00:05]} Ne4 {[%emt 0:00:25]} 7. Bd3 {[%emt 0:00:07]} c5 $1 {[%emt 0:00:44]} 8. Nf3 {[%emt 0:00:05] E32: Nimzo-Indian: Classical (4 Qc2): 4...0-0.} cxd4 {[%emt 0:00:51]} 9. Nxd4 {[%emt 0:00:09]} Nd7 {[%emt 0:00:57]} 10. Bf4 {[%emt 0:00:07] The position is equal.} Qh4 {[%emt 0:00:41]} 11. g3 {[%emt 0:00:39]} Qh5 {[%emt 0:00:38]} 12. O-O {[%emt 0:00:47]} g5 {[%emt 0:06:05]} 13. cxd5 {[%emt 0:02:37]} gxf4 {[%emt 0:05:27]} 14. Bxe4 {[%emt 0:30:55]} ({Reject} 14. Nxe4 exd5 15. Nf6+ Nxf6 16. exf6 Bh3 $11) ({Better is} 14. dxe6 $14 fxe6 15. Nxe4 (15. Bxe4 Nxe5 16. h4 Bd7 $15) 15... Nxe5 16. Qb3) 14... Nxe5 $15 {[%emt 0:09:12][%cal Bd7e5,Be5g4,Bg4e3,Be3f1][%mdl 32] [#]} 15. gxf4 $146 {[%emt 0:42:51] [#]} (15. Rad1 $15) ({Predecessor:} 15. dxe6 Bxe6 16. Nce2 Ng4 17. Nf3 fxg3 18. hxg3 Rac8 19. Qa4 Bd6 20. Rac1 Rxc1 21. Rxc1 Ne5 22. Rc3 {½-½ So,W (2770)-Grischuk,A (2777) Saint Louis Blitz 2020 (15)}) 15... Ng4 $1 $19 {[%emt 0:06:15][%csl Gg4][%cal Rh5h2]} 16. f3 {[%emt 0:01:34]} Ne3 {[%emt 0:01:13][%csl LRc2,LRd5,LRf1]} 17. Qd3 {[%emt 0:05:41]} Nxf1 {[%emt 0:00:43]} 18. Rxf1 {[%emt 0:00:05]} (18. Qxf1 $142 Bd6 19. Nde2) 18... Bxc3 {[%emt 0:11:56]} ({Stronger than} 18... f5 19. dxe6 fxe4 20. Nxe4 $17) 19. Qxc3 {[%emt 0:01:02]} e5 $2 {[%emt 0:04:23]} (19... exd5 $19 {is more deadly.} 20. Rf2 Bh3 21. Rg2+ Bxg2) 20. fxe5 $17 {[%emt 0:00:32]} Bh3 {[%emt 0:00:47]} (20... Qxe5 $17 {Hoping for ...Bh3.} 21. Re1 Kh8) 21. Rd1 {[%emt 0:01:09]} (21. Re1 $1 $11 {remains equal.}) 21... Qg5+ {[%emt 0:06:03]} 22. Kf2 {[%emt 0:00:05] Threatens to win with Rg1.} Qxe5 {[%emt 0:00:08]} 23. Rg1+ {[%emt 0:01:08]} Kh8 {[%emt 0:00:06] Really sharp!} 24. Rg3 {[%emt 0:00:23]} ({White should try} 24. Ne2 $15 Qxc3 25. Nxc3) 24... Bd7 {[%emt 0:01:41] White must now prevent ...f5.} 25. Nf5 {[%emt 0:02:21] [#]} Qxc3 {[%emt 0:00:31]} 26. bxc3 {[%emt 0:00:02]} Bxf5 {[%emt 0:02:34]} 27. Bxf5 {[%emt 0:00:04][%mdl 4096] Endgame KRR-KRB} Rad8 {[%emt 0:00:15]} 28. c4 {[%emt 0:00:36]} b5 {[%emt 0:00:33]} 29. Ke3 {[%emt 0:00:45]} (29. Bd3 $17 {keeps fighting.}) 29... bxc4 $19 {[%emt 0:03:52]} 30. Kd4 {[%emt 0:00:03]} Rd6 {[%emt 0:00:22]} 31. Rh3 {[%emt 0:01:17]} (31. Kxc4 $17 Rfd8 32. Be4) 31... Rfd8 {[%emt 0:03:57]} 32. Rxh7+ {[%emt 0:00:09]} Kg8 {[%emt 0:00:07]} 33. Be4 {[%emt 0:01:01] [#]} (33. Kxc4 {was necessary.} Rxd5 34. Rh5) 33... f5 $1 {[%emt 0:05:03][%cal Of5e4][%mdl 512] ...fxe4! would be deadly.} 34. Rxa7 {[%emt 0:00:03]} (34. Rc7 $142 fxe4 35. fxe4) (34. Rh3 fxe4) 34... fxe4 {[%emt 0:00:06]} 35. fxe4 {[%emt 0:00:02]} Rc8 {[%emt 0:01:06] And now ...c3 would win.} 36. Ra3 {[%emt 0:00:53]} Rh6 {[%emt 0:00:56]} 37. h3 {[%emt 0:00:56]} Rh4 {[%emt 0:01:18][%cal Oc4c3] Strongly threatening ...c3!} 38. d6 {[%emt 0:00:21] [#]} c3 $1 {[%emt 0:00:36]} 39. Rxc3 {[%emt 0:00:09]} Re8 {[%emt 0:02:26]} 40. Re3 {[%emt 0:00:57]} Kf7 {[%emt 0:02:55]} 41. Kd5 {[%emt 0:30:31]} Ra8 {[%emt 0:30:14]} 42. Rf3+ {[%emt 0:00:00]} Ke8 {[%emt 0:00:00]} 43. e5 {[%emt 0:00:00]} Rh6 {[%emt 0:00:00]} (43... Rxa2 {...Ra5+ is the strong threat.} 44. Rf6 Rxh3 45. Re6+ Kd8) 44. Rf5 $2 {[%emt 0:00:00]} (44. Rc3) 44... Rxa2 {[%emt 0:00:00]} 45. Rg5 {[%emt 0:00:00]} Rxh3 {[%emt 0:00:00]} 46. Rg6 {[%emt 0:00:38]} Rd2+ {[%emt 0:00:00]} 47. Ke6 {[%emt 0:00:11]} Rh8 {[%emt 0:00:00]} 48. Rg7 {[%emt 0:00:58]} Rh6+ {[%emt 0:00:13]} 49. Kf5 {[%emt 0:00:10]} Rf2+ {[%emt 0:00:52]} 50. Ke4 {[%emt 0:00:05]} Rh4+ {[%emt 0:03:48]} 51. Kd5 {[%emt 0:00:07]} Rd2+ $2 {[%emt 0:00:11]} (51... Ra2 $19 {has better winning chances. ( -> ...Ra5+)} 52. Re7+ Kd8) 52. Ke6 $17 {[%emt 0:00:18][%cal Rg7g8]} Rh6+ {[%emt 0:00:16]} 53. Kf5 {[%emt 0:00:05]} Rd5 {[%emt 0:00:43]} 54. Ke4 {[%emt 0:02:15]} Rd1 {[%emt 0:00:08]} 55. Kf5 {[%emt 0:00:15]} Rd5 {[%emt 0:00:27]} (55... Re1 $142 56. Rg8+ Kd7 57. Rg7+ Kc6 58. Re7 Rf1+ 59. Ke4 Rh4+ 60. Kd3 Rf3+ 61. Ke2 Ra3 62. Kf2 Rh2+ 63. Kg1 Rd2 64. Rf7 Raa2 65. Rf8 Kd5 66. e6 Rd1+ 67. Rf1 Rxf1+ 68. Kxf1 Kxe6 69. d7 Kxd7 70. Kg1 Ke6 71. Kf1 Ke5 72. Ke1 Ke4 73. Kd1 Kd3 74. Ke1 Rb2 75. Kf1 Ke3 76. Kg1 Kf3 77. Kh1 Kg3 78. Kg1 Rb1#) 56. Ke4 $1 $19 {[%emt 0:00:08]} Rd2 {[%emt 0:01:53]} 57. Kf5 $1 {[%emt 0:00:06]} Rf2+ {[%emt 0:13:43]} 58. Ke4 {[%emt 0:00:12]} Rh1 {[%emt 0:00:22]} 59. Kd5 {[%emt 0:00:56]} Re2 {[%emt 0:01:51]} 60. Rg5 {[%emt 0:02:15] Wards off Rh5} Rd2+ {[%emt 0:00:44]} 61. Ke4 {[%emt 0:01:30]} Re1+ {[%emt 0:00:38] Black mates.} 62. Kf5 {[%emt 0:00:43]} Kf7 {[%emt 0:00:27]} 63. e6+ {[%emt 0:00:57]} Rxe6 {[%emt 0:00:07]} 64. Rg7+ {[%emt 0:00:04]} Kxg7 {[%emt 0:00:07]} 65. Kxe6 {[%emt 0:00:03]} Re2+ {[%emt 0:00:13]} 66. Kd7 {[%emt 0:00:05]} Kf7 {[%emt 0:00:05] Weighted Error Value: White=0.78/Black=0.22 (precise)} 0-1